fUSD/lending_fUSD_20250614
["ID","MTS","AMOUNT","RATE_DAILY","PERIOD"]
[365762924,1749888639784,-884.0,0.00017576,2]
[365762926,1749888639794,-1160.0,0.00017576,2]
[365762928,1749888639803,-10361.06212689,0.00017589,2]
[365762930,1749888639812,-302.6103,0.00017595,2]
[365762932,1749888639822,-500.0,0.00017595,2]
[365762934,1749888639831,-536.2078,0.00017595,2]
[365762936,1749888639840,-179.5562557,0.00017599,2]
[365762938,1749888639850,-500.0,0.00017599,2]
[365762940,1749888639859,-541.3039255,0.00017599,2]
[365762942,1749888639868,-500.0,0.00017599,2]
[365762944,1749888639877,-500.0,0.00017599,2]
[365762946,1749888639886,-500.0,0.00017599,2]
[365762948,1749888639895,-500.0,0.00017599,2]
[365762950,1749888639904,-500.0,0.00017599,2]
[365762952,1749888639913,-500.0,0.00017599,2]
[365762954,1749888639922,-526.70281857,0.00017599,2]
[365762956,1749888639931,-150.0,0.00017599,2]
[365762958,1749888639940,-150.0,0.00017599,2]
[365762960,1749888639949,-67057.94044127,0.000176,2]
[365762963,1749888639968,-29870.83045254,0.000176,2]
[365763213,1749888642784,-10535.0,0.000176,2]
[365763214,1749888642853,-2428.78467787,0.000176,2]
[365763220,1749888642916,-652.32,0.000176,2]
[365763405,1749888646285,-282.78234949,0.00016878,2]
[365763437,1749888955996,200.01680399,0.00024,120]
[365763439,1749889164287,150.0,1e-08,2]
[365763443,1749889212405,200.0,0.00015917,2]
[365763449,1749889299755,467.34,0.00014548,2]
[365763450,1749889311240,161.0,0.00024657,120]
[365763454,1749889508641,3472.122207,0.00016073,2]
[365763457,1749889550061,154.12,0.00013699,2]
[365763458,1749889555720,250.0,0.00015985,2]
[365763469,1749889660676,162.6,0.00016069,2]
[365763476,1749889708898,2185.48,0.00016036,2]
[365763512,1749889831799,-517.83,0.00016154,2]
[365763513,1749889831809,-200.0,0.00016252,2]
[365763514,1749889831819,-200.0,0.00016295,2]
[365763515,1749889831828,-860.77084195,0.00016301,2]
[365763516,1749889831852,-139.22915805,0.00016301,2]
[365763517,1749889831861,-1298.25,0.00016466,2]
[365763518,1749889831870,-269.32,0.00016489,2]
[365763519,1749889831879,-419.13997753,0.00016562,2]
[365763520,1749889831891,-394.24002247,0.00016562,2]
[365763521,1749889831900,-250.0,0.00016679,2]
[365763522,1749889831909,-1200.0,0.00016699,2]
[365763523,1749889831918,-621.91,0.000167,2]
[365763524,1749889831927,-249.38506838,0.000167,2]
[365763525,1749889831939,-205.64493162,0.000167,2]
[365763526,1749889831948,-302.14,0.000167,2]
[365763527,1749889831957,-460.1,0.000167,2]
[365763528,1749889831966,-305.4,0.0001675,2]
[365763529,1749889831975,-200.0,0.00016752,7]
[365763530,1749889831985,-455.03,0.00016778,2]
[365763531,1749889831994,-300.0,0.0001681,2]
[365763532,1749889832003,-300.0,0.0001681,2]
[365763533,1749889832012,-300.0,0.0001681,2]
[365763534,1749889832021,-1957.856,0.00016811,2]
[365763535,1749889832030,-207.4,0.00016811,2]
[365763536,1749889832039,-467.34,0.00016812,2]
[365763537,1749889832049,-292.52537492,0.00016866,2]
[365763538,1749889832068,-100.13934649,0.00016866,2]
[365763539,1749889832077,-300.0,0.00016877,2]
[365763540,1749889832086,-304.32,0.00016878,2]
[365763541,1749889832096,-150.0,0.00016878,2]
[365763542,1749889832105,-455.03,0.00016878,2]
[365763543,1749889832114,-150.21849057,0.00016878,2]
[365763544,1749889832126,-1013.37150943,0.00016878,2]
[365763546,1749889832135,-150.0,0.00016878,2]
[365763548,1749889832144,-455.03,0.00016878,2]
[365763550,1749889832153,-150.0,0.00016878,2]
[365763552,1749889832162,-150.0,0.00016878,2]
[365763554,1749889832171,-150.0,0.00016878,2]
[365763556,1749889832180,-162.66,0.00016878,2]
[365763558,1749889832189,-2694.5132044,0.0001699,2]
[365763560,1749889832198,-6896.8469968,0.00017,2]
[365763562,1749889832207,-407.7,0.00017096,2]
[365763564,1749889832216,-550.0,0.00017107,2]
[365763566,1749889832225,-455.08,0.00017108,2]
[365763569,1749889832235,-331.15,0.00017108,2]
[365763572,1749889832245,-170.73,0.00017108,2]
[365763575,1749889832254,-485.2,0.00017108,2]
[365763578,1749889832264,-165.42,0.00017113,2]
[365763580,1749889832273,-289.38,0.00017118,2]
[365763582,1749889832281,-150.0,0.0001737,2]
[365763584,1749889832290,-150.0,0.0001737,2]
[365763586,1749889832304,-150.0,0.0001737,2]
[365763588,1749889832314,-1164.33,0.0001737,2]
[365763590,1749889832324,-300.5,0.0001737,2]
[365763592,1749889832333,-150.0,0.0001737,2]
[365763594,1749889832343,-150.0,0.0001737,2]
[365763596,1749889832354,-150.0,0.0001737,2]
[365763598,1749889832363,-1164.33,0.0001737,2]
[365763600,1749889832372,-1164.33,0.0001737,2]
[365763602,1749889832383,-150.0,0.0001737,2]
[365763604,1749889832393,-150.0,0.0001737,2]
[365763606,1749889832402,-1164.33,0.0001737,2]
[365763608,1749889832411,-150.0,0.0001737,2]
[365763610,1749889832420,-150.0,0.0001737,2]
[365763612,1749889832430,-150.0,0.0001737,2]
[365763614,1749889832439,-1164.33,0.0001737,2]
[365763616,1749889832449,-150.0,0.0001737,2]
[365763618,1749889832458,-150.0,0.0001737,2]
[365763620,1749889832469,-502.02,0.0001737,2]
[365763622,1749889832479,-150.0,0.0001737,2]
[365763624,1749889832488,-170.78,0.0001737,2]
[365763626,1749889832498,-300.0,0.0001737,2]
[365763628,1749889832507,-170.78,0.0001737,2]
[365763630,1749889832517,-170.78,0.0001737,2]
[365763632,1749889832526,-150.0,0.0001737,2]
[365763634,1749889832536,-170.78,0.0001737,2]
[365763636,1749889832546,-150.0,0.0001737,2]
[365763638,1749889832556,-170.78,0.0001737,2]
[365763640,1749889832565,-170.78,0.0001737,2]
[365763642,1749889832574,-170.78,0.0001737,2]
[365763644,1749889832584,-170.78,0.0001737,2]
[365763646,1749889832593,-4237.5047185,0.0001739,2]
[365763648,1749889832603,-156.51420509,0.0001739,2]
[365763650,1749889832613,-9473.93857512,0.0001739,2]
[365763652,1749889832622,-204.80479698,0.0001739,2]
[365763654,1749889832631,-500.0,0.00017399,2]
[365763656,1749889832641,-159.66544717,0.00017399,2]
[365763658,1749889832651,-501.12357183,0.00017399,2]
[365763660,1749889832661,-500.0,0.00017399,2]
[365763662,1749889832670,-500.0,0.00017399,2]
[365763664,1749889832679,-483.85240885,0.00017399,2]
[365763666,1749889832688,-502.18857201,0.00017399,2]
[365763668,1749889832698,-500.0,0.00017399,2]
[365763670,1749889832707,-500.0,0.00017399,2]
[365763672,1749889832717,-500.0,0.00017399,2]
[365763674,1749889832726,-636.44653267,0.00017399,2]
[365763676,1749889832736,-500.0,0.00017399,2]
[365763678,1749889832745,-20674.45919827,0.000174,2]
[365763681,1749889832762,-533.64022597,0.000174,2]
[365763683,1749889832773,-370.04022624,0.000174,2]
[365763707,1749889837713,-756.50076464,0.000174,2]
[365763708,1749889837978,-2006.91026465,0.000174,2]
[365763709,1749889837990,-766.60095228,0.000174,2]
[365763710,1749889838002,-545.89964758,0.000174,2]
[365763869,1749889839879,-1050.6,0.000174,2]
[365764162,1749889842843,-522.5,0.000174,2]
[365764169,1749889842900,-7912.85025899,0.000174,2]
[365764176,1749889842956,-925.55,0.000174,2]
[365764178,1749889842968,-633.2,0.000174,2]
[365764190,1749889843067,-837.818,0.000174,2]
[365764192,1749889843079,-1804.25610612,0.000174,2]
[365764195,1749889843091,-6861.71334627,0.000174,2]
[365764230,1749889845784,-1541.24335839,0.000174,2]
[365764231,1749889845795,-2291.00974343,0.000174,2]
[365764232,1749889845809,-280.45,0.000174,2]
[365764233,1749889845850,-29094.95005133,0.000174,2]
[365764234,1749889845908,-645.75968916,0.000174,2]
[365764235,1749889845967,-578.3692921,0.000174,2]
[365764236,1749889845978,-544.1499995,0.000174,2]
[365764246,1749889931798,200.0,0.00015295,2]
[365764249,1749890291850,200.0,0.00015737,2]
[365764250,1749890394068,211.17859024,0.00016,2]
[365764251,1749890490298,455.69,0.00014585,2]
[365764253,1749890568479,154.12,0.00013699,2]
[365764256,1749890678291,531.19,0.00015696,2]
[365764258,1749890757136,2709.246747,0.0001605,2]
[365764260,1749890812636,300.19566178,0.00024658,120]
[365764274,1749890917720,500.0,0.0002465,120]
[365764286,1749891011926,201.0,0.00015212,2]
[365764287,1749891031933,-167.47,0.00016147,2]
[365764288,1749891031943,-314.38,0.00016373,2]
[365764289,1749891031952,-314.38,0.00016377,2]
[365764290,1749891031961,-314.38,0.00016382,2]
[365764291,1749891031970,-314.38,0.00016386,2]
[365764292,1749891031979,-314.38,0.0001639,2]
[365764293,1749891031989,-314.38,0.00016395,2]
[365764294,1749891031998,-314.38,0.00016399,2]
[365764295,1749891032007,-314.38,0.00016403,2]
[365764296,1749891032019,-314.38,0.00016408,2]
[365764297,1749891032029,-314.38,0.00016412,2]
[365764298,1749891032047,-314.38,0.00016416,2]
[365764299,1749891032057,-314.38,0.0001642,2]
[365764300,1749891032067,-314.38,0.00016425,2]
[365764301,1749891032076,-314.38,0.00016429,2]
[365764302,1749891032086,-314.38,0.00016433,2]
[365764303,1749891032095,-314.38,0.00016438,2]
[365764304,1749891032105,-314.38,0.00016442,2]
[365764305,1749891032114,-314.38,0.00016446,2]
[365764306,1749891032124,-314.38,0.00016451,2]
[365764307,1749891032133,-1200.0,0.00016454,2]
[365764308,1749891032142,-1000.0,0.00016454,2]
[365764309,1749891032152,-314.38,0.00016455,2]
[365764310,1749891032162,-300.0,0.00016455,2]
[365764311,1749891032171,-550.0,0.00016455,2]
[365764312,1749891032180,-300.0,0.00016455,2]
[365764313,1749891032189,-192.12497409,0.000165,2]
[365764314,1749891032198,-269.32,0.00016559,2]
[365764315,1749891032208,-23503.5,0.00016581,2]
[365764316,1749891032217,-250.0,0.00016594,2]
[365764317,1749891032227,-3500.0,0.000166,6]
[365764318,1749891032236,-200.0,0.00016636,7]
[365764319,1749891032246,-7100.0,0.000167,6]
[365764320,1749891032255,-1366.0,0.00016703,2]
[365764322,1749891032265,-201.0,0.00016757,4]
[365764324,1749891032274,-10600.0,0.000168,6]
[365764326,1749891032284,-455.69,0.00016849,2]
[365764328,1749891032297,-1666.42569515,0.000169,6]
[365764329,1749891032314,-6712.07818172,0.000169,6]
[365764330,1749891032358,-315.94,0.000169,6]
[365764331,1749891032373,-5505.55612313,0.000169,6]
[365764332,1749891032382,-302.69,0.00016903,2]
[365764333,1749891032392,-299.62609022,0.00016903,2]
[365764334,1749891032403,-4.42390978,0.00016903,2]
[365764335,1749891032413,-156.51420509,0.00016913,2]
[365764336,1749891032422,-199.66870875,0.00016913,2]
[365764337,1749891032431,-170.78,0.00016978,2]
[365764338,1749891032441,-192.18207134,0.00017002,2]
[365764339,1749891032451,-150.3,0.00017002,2]
[365764340,1749891032460,-150.3,0.00017002,2]
[365764341,1749891032470,-150.3,0.00017002,2]
[365764342,1749891032479,-150.3,0.00017002,2]
[365764343,1749891032489,-150.3,0.00017002,2]
[365764344,1749891032499,-150.3,0.00017002,2]
[365764345,1749891032510,-150.3,0.00017002,2]
[365764346,1749891032521,-150.3,0.00017002,2]
[365764347,1749891032531,-150.3,0.00017002,2]
[365764348,1749891032543,-150.3,0.00017002,2]
[365764349,1749891032552,-150.3,0.00017002,2]
[365764350,1749891032562,-150.3,0.00017002,2]
[365764351,1749891032571,-150.3,0.00017002,2]
[365764352,1749891032580,-150.3,0.00017002,2]
[365764353,1749891032590,-150.3,0.00017002,2]
[365764354,1749891032600,-150.3,0.00017002,2]
[365764355,1749891032609,-150.3,0.00017002,2]
[365764356,1749891032618,-150.3,0.00017002,2]
[365764357,1749891032628,-150.3,0.00017002,2]
[365764358,1749891032637,-207.4,0.00017002,2]
[365764359,1749891032647,-150.3,0.00017003,2]
[365764360,1749891032656,-150.3,0.00017003,2]
[365764361,1749891032666,-272.7955852,0.00017012,2]
[365764362,1749891032675,-1402.99282163,0.00017013,2]
[365764363,1749891032688,-3219.98945444,0.00017013,2]
[365764364,1749891032700,-1048.80954549,0.00017013,2]
[365764365,1749891032712,-1139.78706964,0.00017013,2]
[365764366,1749891038082,-381.59225543,0.00017,2]
[365764367,1749891038136,-692.74999987,0.00017,2]
[365764368,1749891038147,-1003.55473723,0.00017,2]
[365764548,1749891040219,-4618.2425231,0.00017,2]
[365764550,1749891040228,-234.2891596,0.00017012,2]
[365764552,1749891040238,-500.0,0.00017012,2]
[365764554,1749891040247,-610.3937042,0.00017012,2]
[365764556,1749891040256,-34143.04476415,0.00017013,2]
[365764558,1749891040265,-2867.21,0.00017013,2]
[365764560,1749891040275,-16313.02836477,0.00017013,2]
[365764566,1749891040323,-6725.77030892,0.00017013,2]
[365764568,1749891040334,-1968.16858381,0.00017013,2]
[365764838,1749891043085,-1220.24911827,0.00017012,2]
[365764840,1749891043097,-810.55559958,0.00017012,2]
[365764856,1749891043242,-2537.139,0.00017012,2]
[365765031,1749891046012,-27874.3822524,0.00017012,2]
[365765032,1749891046120,-960.0,0.00017012,2]
[365765034,1749891101895,201.0,0.00015212,2]
[365765035,1749891309078,400.0,0.00024657,120]
[365765037,1749891578153,410.12,0.00014182,2]
[365765038,1749891628322,154.12,0.00013699,2]
[365765041,1749891896690,451.6,0.00016021,2]
[365765065,1749892057002,1000.0,0.00015928,2]
[365765066,1749892084986,1522.65,0.00015928,2]
[365765067,1749892092056,201.0,0.00015301,2]
[365765071,1749892163650,400.0,0.00024657,120]
[365765086,1749892232126,-881.71597347,0.00016251,10]
[365765096,1749892232232,-118.50841837,0.00016251,10]
[365765097,1749892232242,-250.0,0.00016251,2]
[365765098,1749892232251,-152.0,0.00016251,3]
[365765099,1749892232261,-410.12,0.00016446,2]
[365765100,1749892232272,-162.59,0.00016463,2]
[365765101,1749892232281,-152.0,0.00016484,4]
[365765102,1749892232291,-1200.0,0.00016499,2]
[365765103,1749892232301,-1700.0,0.000165,6]
[365765104,1749892232310,-455.08,0.000165,2]
[365765105,1749892232320,-304.48208957,0.000165,2]
[365765106,1749892232370,-150.59791043,0.000165,2]
[365765107,1749892232379,-455.08,0.000165,2]
[365765108,1749892232389,-455.08,0.000165,2]
[365765109,1749892232398,-455.08,0.000165,2]
[365765110,1749892232407,-508.82,0.000165,2]
[365765111,1749892232417,-440.16,0.00016552,2]
[365765112,1749892232426,-3500.0,0.000166,6]
[365765113,1749892232436,-3142.48031047,0.000167,6]
[365765114,1749892232452,-1483.16701062,0.000167,6]
[365765115,1749892232467,-674.35267891,0.000167,6]
[365765116,1749892232476,-152.0,0.00016717,5]
[365765117,1749892232485,-469.93266838,0.00016786,2]
[365765141,1749892238113,-236.76295209,0.00016786,2]
[365765142,1749892238128,-662.9928566,0.000168,6]
[365765143,1749892238146,-527.95,0.000168,6]
[365765144,1749892238217,-3660.76925576,0.000168,6]
[365765190,1749892242249,-1226.09795375,0.000168,6]
[365765191,1749892242273,-1022.18993389,0.000168,6]
[365765192,1749892242282,-336.0,0.0001682,2]
[365765193,1749892242292,-300.0,0.00016849,2]
[365765194,1749892242301,-156.51420509,0.0001685,2]
[365765195,1749892242310,-218.23646816,0.0001685,2]
[365765196,1749892242319,-2418.7367,0.0001685,2]
[365765197,1749892242328,-4457.67334916,0.00016893,2]
[365765198,1749892242337,-162.74938912,0.00016893,2]
[365765199,1749892242347,-201.0,0.00016897,4]
[365765200,1749892242358,-203.0,0.00016899,2]
[365765201,1749892242368,-8900.0,0.000169,6]
[365765202,1749892242377,-10530.88610843,0.000169,2]
[365765203,1749892242386,-174.7101202,0.000169,2]
[365765204,1749892242396,-2453.6426,0.00016912,2]
[365765205,1749892242405,-2848.961,0.00016912,2]
[365765206,1749892242414,-192.18207134,0.0001694,2]
[365765207,1749892242423,-150.3,0.0001694,2]
[365765208,1749892242432,-150.3,0.0001694,2]
[365765209,1749892242441,-150.3,0.0001694,2]
[365765210,1749892242450,-150.3,0.0001694,2]
[365765211,1749892242459,-150.3,0.0001694,2]
[365765212,1749892242468,-150.3,0.0001694,2]
[365765213,1749892242477,-150.3,0.0001694,2]
[365765214,1749892242486,-150.3,0.0001694,2]
[365765215,1749892242495,-150.3,0.0001694,2]
[365765216,1749892242504,-150.3,0.0001694,2]
[365765217,1749892242514,-150.3,0.0001694,2]
[365765218,1749892242523,-150.3,0.0001694,2]
[365765219,1749892242532,-150.3,0.0001694,2]
[365765220,1749892242542,-55467.90601129,0.0001695,2]
[365765221,1749892242551,-1167335.80922301,0.0001695,2]
[365765222,1749892242562,-6990.26754547,0.0001695,2]
[365765223,1749892242573,-1282.0,0.0001695,2]
[365765225,1749892243166,-26433.99644139,0.0001695,2]
[365765226,1749892243178,-4252.41494104,0.0001695,2]
[365765227,1749892243189,-515.21,0.0001695,2]
[365765228,1749892243219,-4801.65217062,0.0001695,2]
[365765229,1749892243231,-6177.18706618,0.0001695,2]
[365765230,1749892243242,-458.475,0.0001695,2]
[365765231,1749892243253,-2409.33409,0.0001695,2]
[365765232,1749892243276,-1467.98596892,0.0001695,2]
[365765233,1749892243381,-678.991629,0.0001695,2]
[365765234,1749892243437,-6670.8923044,0.0001695,2]
[365765235,1749892243449,-2451.3649834,0.0001695,2]
[365765236,1749892243460,-14302.0,0.0001695,2]
[365765237,1749892243470,-130266.97997807,0.0001695,2]
[365765238,1749892246102,-1225.01904747,0.0001695,2]
[365765239,1749892246155,-926.80776368,0.0001695,2]
[365765240,1749892246209,-298.67000001,0.0001695,2]
[365765241,1749892246264,-857.30599154,0.0001695,2]
[365765242,1749892246376,-413.69196566,0.0001695,2]
[365765243,1749892246388,-76358.04988313,0.0001695,2]
[365765244,1749892246399,-16627.67121516,0.0001695,2]
[365765245,1749892246410,-1000.0,0.0001695,2]
[365765246,1749892246431,-34710.87430037,0.0001695,2]
[365765247,1749892246442,-16680.09854244,0.0001695,2]
[365765249,1749892332817,201.0,0.00015301,2]
[365765252,1749892610008,402.54,0.00013994,2]
[365765254,1749892696720,155.96,0.0001587,2]
[365765255,1749892696913,155.96,0.0001591,2]
[365765256,1749892697106,155.96,0.00015949,2]
[365765257,1749892753253,2000.0,0.000161,2]
[365765266,1749893099472,400.0,0.00024657,120]
[365765267,1749893108901,1000.0,0.00015719,2]
[365765268,1749893126608,41419.51213435,0.000229,120]
[365765271,1749893171718,201.0,0.00015494,2]
[365765349,1749893274033,349.0,0.00015652,2]
[365765430,1749893408838,535.69,0.00015615,2]
[365765438,1749893432396,-402.54,0.00016258,2]
[365765439,1749893432406,-300.0,0.00016258,2]
[365765440,1749893432415,-600.0,0.00016258,4]
[365765441,1749893432425,-300.0,0.00016258,2]
[365765442,1749893432434,-169.31432995,0.00016258,2]
[365765443,1749893432443,-300.0,0.00016373,2]
[365765444,1749893432453,-1000.0,0.000164,5]
[365765445,1749893432462,-62.97458276,0.00016499,2]
[365765446,1749893432481,-1137.02541724,0.00016499,2]
[365765447,1749893432490,-370.27217021,0.000165,6]
[365765448,1749893432519,-401.23857953,0.000165,6]
[365765454,1749893432906,-1328.48925026,0.000165,6]
[365765455,1749893432918,-2883.80432259,0.000165,2]
[365765456,1749893432932,-411.8444199,0.000165,2]
[365765509,1749893439055,-468.24024628,0.000165,2]
[365765512,1749893439066,-636.89086711,0.000165,2]
[365765514,1749893439077,-867.35000001,0.000165,2]
[365765639,1749893440308,-526.2295242,0.000165,2]
[365765641,1749893440320,-5427.70211486,0.000165,2]
[365765643,1749893440329,-11222.06149492,0.00016557,2]
[365765645,1749893440339,-151.0,0.0001659,2]
[365765647,1749893440349,-300.0,0.00016598,2]
[365765649,1749893440358,-246.86,0.00016599,2]
[365765651,1749893440368,-253.52,0.00016599,2]
[365765653,1749893440378,-249.65,0.00016599,2]
[365765655,1749893440387,-245.79,0.00016599,2]
[365765657,1749893440396,-203.0,0.00016599,2]
[365765659,1749893440406,-250.46,0.00016599,2]
[365765661,1749893440415,-247.92,0.00016599,2]
[365765663,1749893440425,-251.31,0.00016599,2]
[365765665,1749893440434,-251.97,0.00016599,2]
[365765667,1749893440443,-250.44,0.00016599,2]
[365765669,1749893440452,-254.9,0.00016599,2]
[365765671,1749893440461,-252.13,0.00016599,2]
[365765672,1749893440470,-150.0,0.000166,2]
[365765674,1749893440479,-255.46701861,0.000166,6]
[365765676,1749893440488,-500.0,0.000166,6]
[365765678,1749893440498,-250.0,0.000166,6]
[365765680,1749893440507,-3100.0,0.000166,6]
[365765682,1749893440517,-150.0,0.000166,6]
[365765684,1749893440527,-150.0,0.000166,6]
[365765686,1749893440536,-253.66296792,0.000166,6]
[365765688,1749893440546,-500.0,0.000166,6]
[365765690,1749893440556,-249.06,0.000166,2]
[365765692,1749893440565,-247.88,0.000166,2]
[365765694,1749893440574,-246.88,0.000166,2]
[365765696,1749893440584,-248.47,0.000166,2]
[365765698,1749893440594,-254.82,0.000166,2]
[365765700,1749893440604,-245.67,0.000166,2]
[365765702,1749893440614,-252.83,0.000166,2]
[365765704,1749893440626,-252.11,0.000166,2]
[365765706,1749893440635,-248.64,0.000166,2]
[365765708,1749893440644,-245.29,0.000166,2]
[365765710,1749893440654,-250.11,0.000166,2]
[365765712,1749893440664,-249.94,0.000166,2]
[365765714,1749893440673,-247.48,0.000166,2]
[365765716,1749893440682,-249.63,0.000166,2]
[365765718,1749893440692,-250.91,0.000166,2]
[365765720,1749893440702,-251.13,0.000166,2]
[365765722,1749893440711,-1414.49,0.000166,2]
[365765724,1749893440720,-2181.99,0.000166,2]
[365765726,1749893440729,-9999.99,0.000166,2]
[365765728,1749893440739,-1548.96,0.000166,2]
[365765730,1749893440747,-299.99,0.000166,4]
[365765732,1749893440757,-104544.58,0.000166,2]
[365765734,1749893440766,-150.99,0.000166,2]
[365765735,1749893440775,-1483.06,0.000166,2]
[365765737,1749893440784,-499.99,0.000166,2]
[365765739,1749893440794,-150.99,0.000166,2]
[365765741,1749893440803,-298.87,0.000166,2]
[365765743,1749893440812,-3560.6,0.000166,2]
[365765745,1749893440821,-999.99,0.000166,2]
[365765747,1749893440831,-3430.31,0.000166,2]
[365765749,1749893440840,-4967.96,0.000166,2]
[365765775,1749893441189,-9999.99,0.000166,2]
[365765777,1749893441199,-216.08,0.000166,2]
[365765779,1749893441208,-6647.79,0.000166,2]
[365765781,1749893441217,-4681.55,0.000166,2]
[365765783,1749893441227,-246.54,0.000166,2]
[365765785,1749893441236,-247.79,0.000166,2]
[365765787,1749893441245,-254.12,0.000166,2]
[365765789,1749893441254,-246.69,0.00016602,2]
[365765791,1749893441263,-245.67,0.00016602,2]
[365765793,1749893441273,-246.12,0.00016602,2]
[365765795,1749893441281,-248.15,0.00016602,2]
[365765797,1749893441290,-251.54,0.00016611,2]
[365765799,1749893441299,-250.7,0.00016611,2]
[365765801,1749893441309,-11222.06149492,0.00016615,2]
[365765803,1749893441318,-305.58,0.00016622,2]
[365765805,1749893441327,-200.0,0.00016627,2]
[365765807,1749893441336,-500.0,0.00016627,6]
[365765809,1749893441346,-187.4672818,0.00016627,6]
[365765811,1749893441355,-171.61951829,0.00016627,6]
[365765813,1749893441364,-500.0,0.00016627,6]
[365765815,1749893441373,-500.0,0.00016655,6]
[365765817,1749893441383,-500.0,0.00016655,6]
[365765819,1749893441392,-151.0,0.00016671,2]
[365765820,1749893441401,-500.0,0.00016671,2]
[365765822,1749893441411,-154.90365597,0.00016671,2]
[365765825,1749893441421,-272.41329229,0.00016671,2]
[365765827,1749893441430,-1957.856,0.00016671,2]
[365765828,1749893441439,-334.31012847,0.00016671,2]
[365765830,1749893441449,-1200.0,0.00016671,2]
[365765832,1749893441459,-1200.0,0.00016671,2]
[365765834,1749893441468,-1200.0,0.00016671,2]
[365765836,1749893441477,-1200.0,0.00016671,2]
[365765838,1749893441486,-207.4,0.00016671,2]
[365765840,1749893441495,-1200.0,0.00016671,2]
[365765842,1749893441505,-1316.16347923,0.00016671,2]
[365765844,1749893441514,-151.0,0.00016671,2]
[365765847,1749893441523,-151.0,0.00016671,2]
[365765848,1749893441532,-11222.06149492,0.00016672,2]
[365765851,1749893441545,-500.0,0.00016682,6]
[365765852,1749893441554,-336.0,0.00016689,2]
[365765854,1749893441563,-4200.0,0.000167,6]
[365765856,1749893441572,-500.0,0.0001671,6]
[365765858,1749893441582,-2030.296672,0.00016726,2]
[365765860,1749893441592,-11222.06149492,0.0001673,2]
[365765862,1749893441601,-588.81453252,0.00016737,6]
[365765864,1749893441610,-1000.0,0.0001674,2]
[365765866,1749893441619,-1062.1067,0.0001675,2]
[365765868,1749893441629,-1173.7234171,0.00016781,2]
[365765870,1749893441639,-11222.06149492,0.00016787,2]
[365765872,1749893441649,-159.0,0.00016792,2]
[365765874,1749893441659,-5300.0,0.000168,6]
[365765876,1749893441668,-500.0,0.00016822,2]
[365765878,1749893441677,-1998.0,0.00016843,2]
[365765880,1749893441687,-267.0,0.00016843,2]
[365765882,1749893441695,-274.0,0.00016843,2]
[365765884,1749893441704,-11222.06149492,0.00016845,2]
[365765886,1749893441713,-302.46,0.00016849,2]
[365765888,1749893441723,-300.17,0.00016849,2]
[365765890,1749893441732,-2453.6426,0.0001685,2]
[365765892,1749893441740,-500.0,0.0001685,2]
[365765894,1749893441750,-150.0,0.0001685,2]
[365765896,1749893441759,-150.0,0.0001685,2]
[365765898,1749893441768,-500.0,0.0001685,2]
[365765900,1749893441778,-150.0,0.0001685,2]
[365765902,1749893441788,-150.0,0.0001685,2]
[365765904,1749893441797,-27059.0552,0.0001685,2]